[Event "Early-Titled-Tuesday-Blitz-February-27-2024"]
[Site "Chess.com"]
[Date "2024.02.27"]
[Round "8"]
[White "Roman_Ovetchkin"]
[Black "janhelmer03"]
[Result "1-0"]
[WhiteElo "2600"]
[BlackElo "2366"]
[TimeControl "180+1"]
[EndTime "9:28:00 PST"]
[Termination "Roman_Ovetchkin won on time"]

1. d4 {[%clk 0:03:00.9]} 1... d5 {[%clk 0:02:58.4]} 2. c4 {[%clk 0:03:00.5]}
2... c6 {[%clk 0:02:57.3]} 3. Nf3 {[%clk 0:03:00.1]} 3... Nf6 {[%clk 0:02:55.1]}
4. Qc2 {[%clk 0:03:00.2]} 4... e6 {[%clk 0:02:54]} 5. Nbd2 {[%clk 0:02:59.4]}
5... Bd6 {[%clk 0:02:53.2]} 6. g3 {[%clk 0:02:58.9]} 6... O-O {[%clk 0:02:49.7]}
7. Bg2 {[%clk 0:02:59.4]} 7... Nbd7 {[%clk 0:02:46.4]} 8. O-O {[%clk 0:02:59]}
8... b6 {[%clk 0:02:42.4]} 9. b3 {[%clk 0:02:56.5]} 9... Bb7 {[%clk 0:02:27]}
10. Bb2 {[%clk 0:02:55.8]} 10... Rc8 {[%clk 0:02:17.9]} 11. e4 {[%clk
0:02:32.6]} 11... dxe4 {[%clk 0:02:17.9]} 12. Nxe4 {[%clk 0:02:28.9]} 12... Nxe4
{[%clk 0:02:18.8]} 13. Qxe4 {[%clk 0:02:28.3]} 13... Nf6 {[%clk 0:02:19.5]} 14.
Qh4 {[%clk 0:02:25.6]} 14... c5 {[%clk 0:01:58.3]} 15. dxc5 {[%clk 0:02:04.3]}
15... Bxc5 {[%clk 0:01:57.2]} 16. Ng5 {[%clk 0:01:54.7]} 16... h6 {[%clk
0:01:53.9]} 17. Bxb7 {[%clk 0:01:53.8]} 17... hxg5 {[%clk 0:01:53.7]} 18. Qxg5
{[%clk 0:01:50.4]} 18... Rc7 {[%clk 0:01:52.5]} 19. Rad1 {[%clk 0:01:40.6]}
19... Qe7 {[%clk 0:01:50.6]} 20. Bf3 {[%clk 0:01:38.4]} 20... Rd8 {[%clk
0:01:14.4]} 21. Rxd8+ {[%clk 0:01:34.1]} 21... Qxd8 {[%clk 0:01:13]} 22. Rd1
{[%clk 0:01:22.6]} 22... Qe7 {[%clk 0:00:43.4]} 23. h4 {[%clk 0:01:14.4]} 23...
Kf8 {[%clk 0:00:25.4]} 24. Kg2 {[%clk 0:01:11.9]} 24... Rd7 {[%clk 0:00:12.9]}
25. h5 {[%clk 0:00:32.3]} 25... Rxd1 {[%clk 0:00:12]} 26. Bxd1 {[%clk
0:00:31.2]} 26... Qd6 {[%clk 0:00:03.7]} 27. h6 {[%clk 0:00:29.9]} 27... gxh6
{[%clk 0:00:02.1]} 28. Qxh6+ {[%clk 0:00:29.4]} 28... Ke8 {[%clk 0:00:02.5]} 29.
Bf3 {[%clk 0:00:25.8]} 29... Nd7 {[%clk 0:00:01.6]} 30. Qh8+ {[%clk 0:00:23.7]}
30... Nf8 {[%clk 0:00:02.2]} 31. Qe5 {[%clk 0:00:22.2]} 31... Qd2 {[%clk
0:00:01.8]} 32. Qe2 {[%clk 0:00:22.6]} 32... Qxe2 {[%clk 0:00:01.9]} 33. Bxe2
{[%clk 0:00:22.6]} 33... Ke7 {[%clk 0:00:02.8]} 34. a3 {[%clk 0:00:22.2]} 34...
Bd6 {[%clk 0:00:03.7]} 35. b4 {[%clk 0:00:22.1]} 35... Nd7 {[%clk 0:00:04.3]}
36. f4 {[%clk 0:00:21.5]} 36... f6 {[%clk 0:00:04]} 37. Kf3 {[%clk 0:00:21.1]}
37... f5 {[%clk 0:00:03.3]} 38. Ke3 {[%clk 0:00:18.8]} 38... e5 {[%clk
0:00:03.5]} 39. Bf3 {[%clk 0:00:18.3]} 39... e4 {[%clk 0:00:03.7]} 40. Be2
{[%clk 0:00:16.8]} 40... a5 {[%clk 0:00:03.7]} 41. Bc3 {[%clk 0:00:16.1]} 41...
axb4 {[%clk 0:00:03.9]} 42. axb4 {[%clk 0:00:16.7]} 42... Ke6 {[%clk 0:00:03.8]}
43. Bd1 {[%clk 0:00:16.5]} 43... Be7 {[%clk 0:00:03.4]} 44. Ba4 {[%clk
0:00:16.7]} 44... Bf6 {[%clk 0:00:02.7]} 45. Bxd7+ {[%clk 0:00:15.5]} 45... Kxd7
{[%clk 0:00:01.3]} 46. Bxf6 {[%clk 0:00:16.4]} 1-0

[Event "Early-Titled-Tuesday-Blitz-February-27-2024"]
[Site "Chess.com"]
[Date "2024.02.27"]
[Round "8"]
[White "vishwa_vijeta"]
[Black "emeli_chess"]
[Result "1-0"]
[WhiteElo "2590"]
[BlackElo "2436"]
[TimeControl "180+1"]
[EndTime "9:28:01 PST"]
[Termination "vishwa_vijeta won by checkmate"]

1. e4 {[%clk 0:02:48.2]} 1... e5 {[%clk 0:02:59.4]} 2. Nf3 {[%clk 0:02:45.5]}
2... Nc6 {[%clk 0:02:59.5]} 3. d4 {[%clk 0:02:40.3]} 3... exd4 {[%clk
0:02:58.6]} 4. Bc4 {[%clk 0:02:40.6]} 4... Nf6 {[%clk 0:02:56.4]} 5. Ng5 {[%clk
0:02:40.5]} 5... d5 {[%clk 0:02:47.8]} 6. exd5 {[%clk 0:02:40.1]} 6... Qe7+
{[%clk 0:02:26.9]} 7. Qe2 {[%clk 0:02:30.2]} 7... Qxe2+ {[%clk 0:02:24.7]} 8.
Kxe2 {[%clk 0:02:31.1]} 8... Ne5 {[%clk 0:02:23.7]} 9. Bb3 {[%clk 0:02:30.4]}
9... h6 {[%clk 0:02:18.4]} 10. Nf3 {[%clk 0:02:29.9]} 10... Nxf3 {[%clk
0:02:16.8]} 11. Kxf3 {[%clk 0:02:20.7]} 11... Bg4+ {[%clk 0:02:16.1]} 12. Kg3
{[%clk 0:02:20.2]} 12... O-O-O {[%clk 0:02:13.8]} 13. h3 {[%clk 0:02:17.6]}
13... Bf5 {[%clk 0:02:02.5]} 14. Rd1 {[%clk 0:02:14.7]} 14... Nxd5 {[%clk
0:01:54.9]} 15. Rxd4 {[%clk 0:02:13.1]} 15... Bd6+ {[%clk 0:01:49.6]} 16. Kf3
{[%clk 0:02:12.9]} 16... Nb4 {[%clk 0:01:36.4]} 17. Na3 {[%clk 0:02:05.1]} 17...
Nc6 {[%clk 0:01:33]} 18. Rd1 {[%clk 0:02:02.2]} 18... Rhe8 {[%clk 0:01:30.4]}
19. Bf4 {[%clk 0:01:59.4]} 19... Ne5+ {[%clk 0:01:23.4]} 20. Bxe5 {[%clk
0:01:53.6]} 20... Bxe5 {[%clk 0:01:10.8]} 21. Nc4 {[%clk 0:01:49.6]} 21... Bf6
{[%clk 0:01:01.5]} 22. Rxd8+ {[%clk 0:01:43.9]} 22... Rxd8 {[%clk 0:00:58.8]}
23. Ne3 {[%clk 0:01:43.6]} 23... Bg6 {[%clk 0:00:50.5]} 24. Rd1 {[%clk 0:01:38]}
24... Rxd1 {[%clk 0:00:48.7]} 25. Nxd1 {[%clk 0:01:38.7]} 25... Bd4 {[%clk
0:00:41.5]} 26. c3 {[%clk 0:01:37.8]} 26... Bb6 {[%clk 0:00:39.9]} 27. Ne3
{[%clk 0:01:36.4]} 27... c6 {[%clk 0:00:37.8]} 28. Nc4 {[%clk 0:01:14.1]} 28...
Bc7 {[%clk 0:00:37.5]} 29. g4 {[%clk 0:01:00.9]} 29... f6 {[%clk 0:00:37.3]} 30.
Ne3 {[%clk 0:00:53.8]} 30... Kd7 {[%clk 0:00:35.5]} 31. Bc2 {[%clk 0:00:53.8]}
31... Bxc2 {[%clk 0:00:32.6]} 32. Nxc2 {[%clk 0:00:53.9]} 32... Be5 {[%clk
0:00:30.6]} 33. Ke4 {[%clk 0:00:53.4]} 33... Ke6 {[%clk 0:00:30.5]} 34. f4
{[%clk 0:00:53.6]} 34... Bc7 {[%clk 0:00:28.3]} 35. Nd4+ {[%clk 0:00:53.3]}
35... Kf7 {[%clk 0:00:26.9]} 36. Nf5 {[%clk 0:00:53.4]} 36... g6 {[%clk
0:00:19.3]} 37. Nxh6+ {[%clk 0:00:50.4]} 37... Kg7 {[%clk 0:00:18.5]} 38. g5
{[%clk 0:00:50]} 38... f5+ {[%clk 0:00:18.8]} 39. Nxf5+ {[%clk 0:00:48.7]} 39...
gxf5+ {[%clk 0:00:18.9]} 40. Kxf5 {[%clk 0:00:49.6]} 40... Bb6 {[%clk
0:00:16.5]} 41. h4 {[%clk 0:00:49.5]} 41... Be3 {[%clk 0:00:16.4]} 42. b3 {[%clk
0:00:48.8]} 42... Bd2 {[%clk 0:00:15.6]} 43. c4 {[%clk 0:00:48.4]} 43... Bc3
{[%clk 0:00:15.9]} 44. h5 {[%clk 0:00:48.5]} 44... b5 {[%clk 0:00:15]} 45. h6+
{[%clk 0:00:45.7]} 45... Kh7 {[%clk 0:00:14.8]} 46. Kg4 {[%clk 0:00:45.8]} 46...
Bd2 {[%clk 0:00:11.2]} 47. f5 {[%clk 0:00:45]} 47... bxc4 {[%clk 0:00:07.6]} 48.
bxc4 {[%clk 0:00:45.2]} 48... Bc3 {[%clk 0:00:06.4]} 49. Kh5 {[%clk 0:00:45.3]}
49... Bd4 {[%clk 0:00:04.8]} 50. f6 {[%clk 0:00:45.3]} 50... Be5 {[%clk
0:00:02.3]} 51. f7 {[%clk 0:00:45.1]} 51... Bd6 {[%clk 0:00:01.7]} 52. g6+
{[%clk 0:00:45.3]} 52... Kh8 {[%clk 0:00:01.6]} 53. g7+ {[%clk 0:00:46.2]} 53...
Kh7 {[%clk 0:00:01.9]} 54. g8=Q# {[%clk 0:00:47.1]} 1-0

[Event "Early-Titled-Tuesday-Blitz-February-27-2024"]
[Site "Chess.com"]
[Date "2024.02.27"]
[Round "8"]
[White "chesstrainer2042"]
[Black "IM_ArthurDW08"]
[Result "0-1"]
[WhiteElo "2564"]
[BlackElo "2824"]
[TimeControl "180+1"]
[EndTime "9:28:09 PST"]
[Termination "IM_ArthurDW08 won on time"]

1. d4 {[%clk 0:02:32.4]} 1... Nf6 {[%clk 0:02:55.6]} 2. Nf3 {[%clk 0:02:32.8]}
2... g6 {[%clk 0:02:55.7]} 3. c4 {[%clk 0:02:33.4]} 3... Bg7 {[%clk 0:02:56.2]}
4. Nc3 {[%clk 0:02:33.8]} 4... O-O {[%clk 0:02:57.1]} 5. e4 {[%clk 0:02:33.7]}
5... d6 {[%clk 0:02:58]} 6. Be2 {[%clk 0:02:32.9]} 6... Nbd7 {[%clk 0:02:55.2]}
7. O-O {[%clk 0:02:30.1]} 7... e5 {[%clk 0:02:56.1]} 8. Be3 {[%clk 0:02:29.5]}
8... Qe7 {[%clk 0:02:53.4]} 9. Re1 {[%clk 0:02:28]} 9... c6 {[%clk 0:02:44.8]}
10. d5 {[%clk 0:02:23.9]} 10... c5 {[%clk 0:02:43.4]} 11. Nd2 {[%clk 0:02:23.2]}
11... Kh8 {[%clk 0:02:42.2]} 12. a3 {[%clk 0:02:22.6]} 12... a6 {[%clk
0:02:25.9]} 13. Kh1 {[%clk 0:02:06.7]} 13... Ng8 {[%clk 0:02:25.2]} 14. g4
{[%clk 0:01:48]} 14... Bh6 {[%clk 0:02:22.2]} 15. Bf1 {[%clk 0:01:47.1]} 15...
Bxe3 {[%clk 0:02:21]} 16. Rxe3 {[%clk 0:01:47.1]} 16... Ndf6 {[%clk 0:02:01.3]}
17. Be2 {[%clk 0:01:41.8]} 17... h6 {[%clk 0:01:26.2]} 18. Nf1 {[%clk 0:01:41]}
18... Kg7 {[%clk 0:01:26.1]} 19. Ng3 {[%clk 0:01:41.3]} 19... Nh7 {[%clk
0:01:25.9]} 20. b4 {[%clk 0:01:38.2]} 20... b6 {[%clk 0:01:23.3]} 21. Rb1 {[%clk
0:01:34.5]} 21... Qh4 {[%clk 0:01:21.4]} 22. Na4 {[%clk 0:01:23.1]} 22... b5
{[%clk 0:00:36.6]} 23. Nb6 {[%clk 0:01:13.4]} 23... Rb8 {[%clk 0:00:36.5]} 24.
bxc5 {[%clk 0:01:10.5]} 24... dxc5 {[%clk 0:00:37.4]} 25. Nxc8 {[%clk
0:01:08.5]} 25... Rbxc8 {[%clk 0:00:38.3]} 26. cxb5 {[%clk 0:01:07.5]} 26...
axb5 {[%clk 0:00:39.2]} 27. Rxb5 {[%clk 0:00:58.8]} 27... Ngf6 {[%clk
0:00:39.5]} 28. f3 {[%clk 0:00:36.1]} 28... Ng5 {[%clk 0:00:32.3]} 29. Bf1
{[%clk 0:00:36.5]} 29... h5 {[%clk 0:00:27.2]} 30. Qa1 {[%clk 0:00:35]} 30...
hxg4 {[%clk 0:00:18.7]} 31. Qxe5 {[%clk 0:00:29.3]} 31... Nxf3 {[%clk
0:00:18.1]} 32. Rxf3 {[%clk 0:00:29.4]} 32... gxf3 {[%clk 0:00:19]} 33. Rb6
{[%clk 0:00:24.1]} 33... Rh8 {[%clk 0:00:17.4]} 34. h3 {[%clk 0:00:22.2]} 34...
Rce8 {[%clk 0:00:17.9]} 35. Qc7 {[%clk 0:00:14.5]} 35... Qg4 {[%clk 0:00:08.6]}
36. Kh2 {[%clk 0:00:12.3]} 36... Qg5 {[%clk 0:00:08.9]} 37. Rb7 {[%clk 0:00:10]}
37... Ref8 {[%clk 0:00:03.6]} 38. Qxc5 {[%clk 0:00:07.2]} 38... Ng4+ {[%clk
0:00:03.2]} 39. Kh1 {[%clk 0:00:06.6]} 39... Ne3 {[%clk 0:00:04.1]} 40. Qc3+
{[%clk 0:00:03.1]} 40... Kg8 {[%clk 0:00:04.6]} 41. Qe1 {[%clk 0:00:02.2]} 41...
Nxf1 {[%clk 0:00:04.4]} 0-1

[Event "Early-Titled-Tuesday-Blitz-February-27-2024"]
[Site "Chess.com"]
[Date "2024.02.27"]
[Round "8"]
[White "annacramling"]
[Black "publicaccountcze"]
[Result "1-0"]
[WhiteElo "2118"]
[BlackElo "2223"]
[TimeControl "180+1"]
[EndTime "9:28:09 PST"]
[Termination "annacramling won by checkmate"]

1. e3 {[%clk 0:03:00.9]} 1... c5 {[%clk 0:02:54.1]} 2. d3 {[%clk 0:03:00.9]}
2... d5 {[%clk 0:02:52.2]} 3. Ne2 {[%clk 0:03:00.2]} 3... Nc6 {[%clk 0:02:49.8]}
4. Nd2 {[%clk 0:02:56]} 4... Nf6 {[%clk 0:02:49]} 5. Nb3 {[%clk 0:02:54]} 5...
e6 {[%clk 0:02:45.6]} 6. Ng3 {[%clk 0:02:53.7]} 6... Be7 {[%clk 0:02:40.4]} 7.
d4 {[%clk 0:02:52.8]} 7... b6 {[%clk 0:02:38.7]} 8. dxc5 {[%clk 0:02:31.9]} 8...
bxc5 {[%clk 0:02:39.6]} 9. c4 {[%clk 0:02:32]} 9... d4 {[%clk 0:02:18]} 10. exd4
{[%clk 0:02:22.9]} 10... Nxd4 {[%clk 0:02:12.5]} 11. Nxd4 {[%clk 0:02:20]} 11...
Qxd4 {[%clk 0:01:54.9]} 12. Be3 {[%clk 0:02:09.7]} 12... Qxb2 {[%clk 0:01:43.8]}
13. Rb1 {[%clk 0:02:03.8]} 13... Qc3+ {[%clk 0:01:43.3]} 14. Bd2 {[%clk
0:02:03.2]} 14... Qe5+ {[%clk 0:01:23.4]} 15. Be2 {[%clk 0:01:35]} 15... O-O
{[%clk 0:01:16.4]} 16. f4 {[%clk 0:01:25.2]} 16... Qc7 {[%clk 0:01:08.6]} 17.
Bf3 {[%clk 0:01:24.2]} 17... Rb8 {[%clk 0:01:07]} 18. O-O {[%clk 0:01:08.3]}
18... Bb7 {[%clk 0:00:58.9]} 19. Bc3 {[%clk 0:00:59]} 19... Rfd8 {[%clk
0:00:55.7]} 20. Qc2 {[%clk 0:00:51.5]} 20... Bxf3 {[%clk 0:00:43.9]} 21. Rxf3
{[%clk 0:00:52.4]} 21... Rxb1+ {[%clk 0:00:43.4]} 22. Qxb1 {[%clk 0:00:53.3]}
22... Qb6 {[%clk 0:00:43.7]} 23. Qa1 {[%clk 0:00:48.3]} 23... Rb8 {[%clk
0:00:36.9]} 24. Rf1 {[%clk 0:00:47.3]} 24... Ne8 {[%clk 0:00:28.1]} 25. f5
{[%clk 0:00:45.1]} 25... Bf6 {[%clk 0:00:27.8]} 26. fxe6 {[%clk 0:00:43.4]}
26... Qxe6 {[%clk 0:00:28.7]} 27. Re1 {[%clk 0:00:38.4]} 27... Bxc3 {[%clk
0:00:20.1]} 28. Qxc3 {[%clk 0:00:35.6]} 28... Qf6 {[%clk 0:00:18.5]} 29. Qb3
{[%clk 0:00:24.2]} 29... Qd4+ {[%clk 0:00:13.9]} 30. Kh1 {[%clk 0:00:24]} 30...
Qd8 {[%clk 0:00:08.1]} 31. Qa4 {[%clk 0:00:19.6]} 31... Nf6 {[%clk 0:00:07.6]}
32. Qxa7 {[%clk 0:00:18]} 32... Ra8 {[%clk 0:00:05.3]} 33. Qxc5 {[%clk
0:00:16.8]} 33... Rxa2 {[%clk 0:00:05.7]} 34. Nf5 {[%clk 0:00:15.8]} 34... Rd2
{[%clk 0:00:04.4]} 35. h3 {[%clk 0:00:11.7]} 35... Rd1 {[%clk 0:00:04]} 36. Rxd1
{[%clk 0:00:07.3]} 36... Qxd1+ {[%clk 0:00:04.9]} 37. Kh2 {[%clk 0:00:07.8]}
37... h6 {[%clk 0:00:02.8]} 38. Ne7+ {[%clk 0:00:05.8]} 38... Kh7 {[%clk
0:00:02.4]} 39. Qf5+ {[%clk 0:00:06.2]} 39... Kh8 {[%clk 0:00:01.9]} 40. Qc8+
{[%clk 0:00:05.7]} 40... Kh7 {[%clk 0:00:02.5]} 41. Qf5+ {[%clk 0:00:05.9]}
41... Kh8 {[%clk 0:00:03]} 42. Qc8+ {[%clk 0:00:06.1]} 42... Kh7 {[%clk
0:00:03.5]} 43. Nf5 {[%clk 0:00:04.6]} 43... Qd3 {[%clk 0:00:01.7]} 44. c5
{[%clk 0:00:03.9]} 44... Qd4 {[%clk 0:00:01.7]} 45. Nxd4 {[%clk 0:00:03.3]}
45... Kg6 {[%clk 0:00:02]} 46. c6 {[%clk 0:00:04.2]} 46... Ne4 {[%clk
0:00:02.5]} 47. Qf5# {[%clk 0:00:04.5]} 1-0

[Event "Early-Titled-Tuesday-Blitz-February-27-2024"]
[Site "Chess.com"]
[Date "2024.02.27"]
[Round "8"]
[White "Firouzja2003"]
[Black "TigrVShlyape"]
[Result "0-1"]
[WhiteElo "3062"]
[BlackElo "2886"]
[TimeControl "180+1"]
[EndTime "9:28:10 PST"]
[Termination "TigrVShlyape won on time"]

1. d4 {[%clk 0:03:00.9]} 1... f5 {[%clk 0:02:58.1]} 2. Bf4 {[%clk 0:02:56.7]}
2... Nf6 {[%clk 0:02:54.2]} 3. e3 {[%clk 0:02:57.3]} 3... g6 {[%clk 0:02:51.5]}
4. h4 {[%clk 0:02:57.4]} 4... h6 {[%clk 0:02:46.8]} 5. Nf3 {[%clk 0:02:51.1]}
5... d6 {[%clk 0:02:46.8]} 6. Bc4 {[%clk 0:02:51.1]} 6... Nc6 {[%clk 0:02:41.6]}
7. Nc3 {[%clk 0:02:49.9]} 7... Bg7 {[%clk 0:02:41.1]} 8. Qe2 {[%clk 0:02:35.2]}
8... e6 {[%clk 0:02:35.8]} 9. O-O-O {[%clk 0:02:20.7]} 9... Qe7 {[%clk
0:02:32.7]} 10. Bb3 {[%clk 0:02:15.3]} 10... Bd7 {[%clk 0:02:17.5]} 11. e4
{[%clk 0:02:15.2]} 11... fxe4 {[%clk 0:02:15.9]} 12. Nxe4 {[%clk 0:02:16.1]}
12... O-O-O {[%clk 0:02:14.2]} 13. Nc3 {[%clk 0:02:13.3]} 13... Rde8 {[%clk
0:02:11.1]} 14. Rhe1 {[%clk 0:02:07.9]} 14... Na5 {[%clk 0:02:05.7]} 15. Ba4
{[%clk 0:02:00.9]} 15... Bxa4 {[%clk 0:02:01.7]} 16. Nxa4 {[%clk 0:02:01.8]}
16... Qd7 {[%clk 0:02:00.8]} 17. Nc3 {[%clk 0:02:01.6]} 17... Nc6 {[%clk
0:01:54.1]} 18. Kb1 {[%clk 0:02:00.9]} 18... a6 {[%clk 0:01:53.5]} 19. a3 {[%clk
0:02:00.4]} 19... Qf7 {[%clk 0:01:50.2]} 20. Bc1 {[%clk 0:01:59.1]} 20... Nd7
{[%clk 0:01:44.9]} 21. Ne4 {[%clk 0:01:57.6]} 21... d5 {[%clk 0:01:40.6]} 22.
Nc3 {[%clk 0:01:55.3]} 22... Nb6 {[%clk 0:01:39.1]} 23. Be3 {[%clk 0:01:54]}
23... Nc4 {[%clk 0:01:38.6]} 24. Nd2 {[%clk 0:01:54.1]} 24... Nxe3 {[%clk
0:01:31.1]} 25. fxe3 {[%clk 0:01:54.3]} 25... h5 {[%clk 0:01:21.7]} 26. Nf3
{[%clk 0:01:52.1]} 26... Rhf8 {[%clk 0:01:15.5]} 27. e4 {[%clk 0:01:51.6]} 27...
e5 {[%clk 0:01:09.8]} 28. Ng5 {[%clk 0:01:45.8]} 28... Qg8 {[%clk 0:01:02.7]}
29. Nxd5 {[%clk 0:01:42.7]} 29... exd4 {[%clk 0:00:59.8]} 30. Qc4 {[%clk
0:01:38.1]} 30... Kb8 {[%clk 0:00:57.7]} 31. Rd3 {[%clk 0:01:34.2]} 31... Be5
{[%clk 0:00:52.1]} 32. Nf3 {[%clk 0:01:34]} 32... Qg7 {[%clk 0:00:50.2]} 33.
Red1 {[%clk 0:01:22.7]} 33... Bd6 {[%clk 0:00:37.6]} 34. Nxd4 {[%clk 0:01:07.2]}
34... Ne5 {[%clk 0:00:37.2]} 35. Qc3 {[%clk 0:01:07.9]} 35... Qd7 {[%clk
0:00:31.7]} 36. R3d2 {[%clk 0:01:02.7]} 36... Qg4 {[%clk 0:00:31.6]} 37. Nb3
{[%clk 0:00:47.8]} 37... Qxe4 {[%clk 0:00:29.2]} 38. Na5 {[%clk 0:00:47.8]}
38... Qa4 {[%clk 0:00:20.6]} 39. Rd4 {[%clk 0:00:48]} 39... Qb5 {[%clk
0:00:19.6]} 40. a4 {[%clk 0:00:17.1]} 40... Qc5 {[%clk 0:00:19.6]} 41. Qd2
{[%clk 0:00:14.9]} 41... Nc6 {[%clk 0:00:17.9]} 42. Nb3 {[%clk 0:00:15]} 42...
Qa7 {[%clk 0:00:16.9]} 43. Rc4 {[%clk 0:00:14]} 43... Qf2 {[%clk 0:00:16.9]} 44.
Qc3 {[%clk 0:00:12.4]} 44... Qe2 {[%clk 0:00:15.6]} 45. Rd3 {[%clk 0:00:08.6]}
45... Rf1+ {[%clk 0:00:15.2]} 46. Ka2 {[%clk 0:00:08.4]} 46... Qe1 {[%clk
0:00:15.5]} 47. Qxe1 {[%clk 0:00:04.1]} 47... Rexe1 {[%clk 0:00:15.4]} 48. Nd2
{[%clk 0:00:02.8]} 48... Rh1 {[%clk 0:00:11.8]} 49. Re4 {[%clk 0:00:02.3]} 49...
Ne5 {[%clk 0:00:11.2]} 0-1

[Event "Early-Titled-Tuesday-Blitz-February-27-2024"]
[Site "Chess.com"]
[Date "2024.02.27"]
[Round "8"]
[White "Sanan_Sjugirov"]
[Black "RobertoJBM"]
[Result "1-0"]
[WhiteElo "2980"]
[BlackElo "2850"]
[TimeControl "180+1"]
[EndTime "9:28:10 PST"]
[Termination "Sanan_Sjugirov won by checkmate"]

1. e4 {[%clk 0:03:00.9]} 1... c6 {[%clk 0:02:59.3]} 2. d4 {[%clk 0:02:59.7]}
2... d5 {[%clk 0:02:59.3]} 3. e5 {[%clk 0:03:00.1]} 3... Bf5 {[%clk 0:02:58.5]}
4. Bd3 {[%clk 0:03:00.6]} 4... Bxd3 {[%clk 0:02:58]} 5. Qxd3 {[%clk 0:03:01.5]}
5... e6 {[%clk 0:02:57.3]} 6. Ne2 {[%clk 0:03:01.9]} 6... c5 {[%clk 0:02:57]} 7.
c3 {[%clk 0:03:02.2]} 7... Qb6 {[%clk 0:02:53]} 8. O-O {[%clk 0:03:01.9]} 8...
Nc6 {[%clk 0:02:51.7]} 9. a3 {[%clk 0:02:58.2]} 9... c4 {[%clk 0:02:50.9]} 10.
Qd1 {[%clk 0:02:50]} 10... Nge7 {[%clk 0:02:50.1]} 11. Nd2 {[%clk 0:02:45.8]}
11... Na5 {[%clk 0:02:49.4]} 12. Ng3 {[%clk 0:02:22]} 12... g6 {[%clk
0:02:46.5]} 13. Nf3 {[%clk 0:02:20.8]} 13... Nb3 {[%clk 0:02:42.4]} 14. Rb1
{[%clk 0:02:20.4]} 14... h6 {[%clk 0:02:38.1]} 15. h4 {[%clk 0:02:18.9]} 15...
Nf5 {[%clk 0:02:33.5]} 16. h5 {[%clk 0:02:05.1]} 16... O-O-O {[%clk 0:02:21.3]}
17. Be3 {[%clk 0:02:00.4]} 17... Be7 {[%clk 0:02:19.5]} 18. hxg6 {[%clk
0:01:47.2]} 18... fxg6 {[%clk 0:02:19.5]} 19. Nxf5 {[%clk 0:01:47.2]} 19... gxf5
{[%clk 0:02:15.1]} 20. g3 {[%clk 0:01:47]} 20... Rdg8 {[%clk 0:02:03]} 21. Kg2
{[%clk 0:01:47]} 21... h5 {[%clk 0:02:02.4]} 22. Rh1 {[%clk 0:01:44.6]} 22... h4
{[%clk 0:02:02.6]} 23. Qe2 {[%clk 0:01:38.3]} 23... Qd8 {[%clk 0:01:54.6]} 24.
Rbg1 {[%clk 0:00:56]} 24... Qf8 {[%clk 0:01:49.7]} 25. Bf4 {[%clk 0:00:51.6]}
25... hxg3 {[%clk 0:01:45.7]} 26. fxg3 {[%clk 0:00:49.7]} 26... Qg7 {[%clk
0:01:36.9]} 27. Qe1 {[%clk 0:00:38.3]} 27... Qg4 {[%clk 0:01:30.6]} 28. Rxh8
{[%clk 0:00:35.3]} 28... Rxh8 {[%clk 0:01:30.6]} 29. Rh1 {[%clk 0:00:35]} 29...
Rg8 {[%clk 0:01:27.4]} 30. Kf2 {[%clk 0:00:32.3]} 30... Kd7 {[%clk 0:00:53.2]}
31. Rh7 {[%clk 0:00:28.7]} 31... Rg7 {[%clk 0:00:53.5]} 32. Qh1 {[%clk
0:00:23.6]} 32... b5 {[%clk 0:00:50.2]} 33. Rh8 {[%clk 0:00:17.3]} 33... Rg8
{[%clk 0:00:49.8]} 34. Qh7 {[%clk 0:00:14.3]} 34... Rxh8 {[%clk 0:00:48.3]} 35.
Qxh8 {[%clk 0:00:15.2]} 35... a6 {[%clk 0:00:21.6]} 36. Qh7 {[%clk 0:00:14.6]}
36... Ke8 {[%clk 0:00:20.7]} 37. Qh8+ {[%clk 0:00:14.6]} 37... Kf7 {[%clk
0:00:20.2]} 38. Qc8 {[%clk 0:00:08.9]} 38... Qh3 {[%clk 0:00:19.2]} 39. Qd7
{[%clk 0:00:08]} 39... Kf8 {[%clk 0:00:08.7]} 40. Qxe6 {[%clk 0:00:06]} 40...
Qh1 {[%clk 0:00:08.7]} 41. Qxf5+ {[%clk 0:00:05.9]} 41... Ke8 {[%clk 0:00:09.1]}
42. Qc8+ {[%clk 0:00:05.8]} 42... Kf7 {[%clk 0:00:09.3]} 43. e6+ {[%clk
0:00:04.9]} 43... Kg7 {[%clk 0:00:08.3]} 44. Be5+ {[%clk 0:00:04.7]} 44... Kg6
{[%clk 0:00:08.8]} 45. Qg8+ {[%clk 0:00:04.5]} 45... Kf5 {[%clk 0:00:08.7]} 46.
Qf7+ {[%clk 0:00:03.8]} 46... Ke4 {[%clk 0:00:09.1]} 47. Qg6# {[%clk 0:00:02.8]}
1-0

[Event "Early-Titled-Tuesday-Blitz-February-27-2024"]
[Site "Chess.com"]
[Date "2024.02.27"]
[Round "8"]
[White "abelmat"]
[Black "kaponerde"]
[Result "1-0"]
[WhiteElo "2075"]
[BlackElo "2204"]
[TimeControl "180+1"]
[EndTime "9:28:11 PST"]
[Termination "abelmat won on time"]

1. d4 {[%clk 0:03:00.9]} 1... d5 {[%clk 0:03:00.1]} 2. c4 {[%clk 0:03:00.3]}
2... c6 {[%clk 0:03:00.5]} 3. Nf3 {[%clk 0:03:00.5]} 3... Nf6 {[%clk 0:03:00.4]}
4. Nc3 {[%clk 0:03:00.4]} 4... dxc4 {[%clk 0:03:00.8]} 5. e3 {[%clk 0:03:00.2]}
5... b5 {[%clk 0:03:00.4]} 6. a4 {[%clk 0:03:00.1]} 6... b4 {[%clk 0:02:59.8]}
7. Na2 {[%clk 0:02:58.6]} 7... e6 {[%clk 0:02:31.9]} 8. Bxc4 {[%clk 0:02:58.5]}
8... c5 {[%clk 0:02:20]} 9. O-O {[%clk 0:02:58.2]} 9... Nbd7 {[%clk 0:02:08.8]}
10. Bd2 {[%clk 0:02:54.6]} 10... a5 {[%clk 0:02:01.5]} 11. Nc1 {[%clk
0:02:50.9]} 11... Ba6 {[%clk 0:01:49]} 12. Bxa6 {[%clk 0:02:46.4]} 12... Rxa6
{[%clk 0:01:49.9]} 13. Qe2 {[%clk 0:02:42.6]} 13... Qa8 {[%clk 0:01:14.3]} 14.
Nd3 {[%clk 0:02:31.5]} 14... Bd6 {[%clk 0:00:49.1]} 15. Nde5 {[%clk 0:02:30.1]}
15... O-O {[%clk 0:00:47.3]} 16. Rac1 {[%clk 0:02:21.8]} 16... Rc8 {[%clk
0:00:44.2]} 17. h3 {[%clk 0:02:16.2]} 17... Bxe5 {[%clk 0:00:35]} 18. dxe5
{[%clk 0:02:13.4]} 18... Ne4 {[%clk 0:00:33.6]} 19. Rfd1 {[%clk 0:02:12.3]}
19... Rac6 {[%clk 0:00:29.2]} 20. Qc4 {[%clk 0:01:56.7]} 20... R6c7 {[%clk
0:00:17.4]} 21. Be1 {[%clk 0:01:49]} 21... Nb6 {[%clk 0:00:17.5]} 22. Qb5 {[%clk
0:01:40.1]} 22... c4 {[%clk 0:00:16.2]} 23. Qxb6 {[%clk 0:01:20.1]} 23... h6
{[%clk 0:00:16.3]} 24. Rd4 {[%clk 0:01:14.3]} 24... Nc5 {[%clk 0:00:15.8]} 25.
Rdxc4 {[%clk 0:00:51.4]} 25... Rc6 {[%clk 0:00:16]} 26. Qb5 {[%clk 0:00:47.8]}
26... Rb8 {[%clk 0:00:16.3]} 27. Qxc6 {[%clk 0:00:22.1]} 27... Qxc6 {[%clk
0:00:15.3]} 28. Rxc5 {[%clk 0:00:23]} 28... Qxa4 {[%clk 0:00:13.3]} 29. Nd4
{[%clk 0:00:20.6]} 29... Qa2 {[%clk 0:00:08.9]} 30. b3 {[%clk 0:00:19.2]} 30...
a4 {[%clk 0:00:07.7]} 31. R5c2 {[%clk 0:00:15.8]} 31... Qa3 {[%clk 0:00:06.3]}
32. bxa4 {[%clk 0:00:08.9]} 32... Qxa4 {[%clk 0:00:06.6]} 33. Rc7 {[%clk
0:00:07.7]} 33... b3 {[%clk 0:00:06.8]} 34. Bc3 {[%clk 0:00:05.5]} 34... b2
{[%clk 0:00:05.9]} 35. Bxb2 {[%clk 0:00:05.7]} 35... Rxb2 {[%clk 0:00:05.2]} 36.
Re7 {[%clk 0:00:05]} 36... Kh7 {[%clk 0:00:03.9]} 37. Rxf7 {[%clk 0:00:03.7]}
37... Qa2 {[%clk 0:00:03.4]} 38. Rcc7 {[%clk 0:00:03.6]} 38... Rb1+ {[%clk
0:00:02.6]} 39. Kh2 {[%clk 0:00:03.5]} 1-0